bitfinex-derivatives/quotes_BTCF0:USTF0_20250501
["timestamp","ask_amount","ask_price","bid_price","bid_amount"]
[1746066685499,0.2106798,94926.0,94925.0,0.00105346]
[1746066685805,0.60563594,94926.0,94925.0,0.28105346]
[1746066686102,0.60563594,94926.0,94925.0,0.40305346]
[1746066686303,0.71097994,94926.0,94925.0,0.40305346]
[1746066686603,0.93017994,94926.0,94925.0,0.40305346]
[1746066687290,0.93017994,94926.0,94922.0,0.37269563]
[1746066687489,0.2633879,94914.0,94913.0,0.2107085]
[1746066687798,0.6241879,94914.0,94913.0,0.46123036]
[1746066688003,0.65834404,94914.0,94913.0,0.25052186]
[1746066688197,0.60566704,94914.0,94913.0,0.37252186]
[1746066688503,0.60566704,94914.0,94913.0,0.58323056]
[1746066688801,0.60566704,94914.0,94913.0,0.58823056]
[1746066689203,0.71696704,94914.0,94913.0,0.70283056]
[1746066689797,0.71696704,94914.0,94913.0,0.49212186]
[1746066690198,0.71696704,94914.0,94913.0,0.4816]
[1746066690199,0.82776704,94914.0,94913.0,0.4816]
[1746066690504,0.210722,94907.0,94906.0,0.49890656]
[1746066690805,0.24487814,94907.0,94906.0,0.74969236]
[1746066691195,0.24487814,94907.0,94906.0,0.87169236]
[1746066691602,0.24487814,94907.0,94906.0,0.87569236]
[1746066691801,0.35377814,94907.0,94906.0,0.87969236]
[1746066692002,0.45837814,94907.0,94906.0,0.87969236]
[1746066701001,0.81917814,94907.0,94906.0,0.87969236]
[1746066703095,0.39495614,94907.0,94906.0,1.09041656]
[1746066703295,0.39499614,94907.0,94906.0,1.09041656]
[1746066703503,0.36084,94907.0,94906.0,1.09041656]
[1746066703696,0.571502,94916.0,94915.0,0.2107043]
[1746066704005,0.2107171,94911.0,94910.0,0.2107138]
[1746066704192,0.2107171,94911.0,94910.0,0.4707138]
[1746066704997,0.2107571,94911.0,94910.0,0.4707138]
[1746066705195,0.2107571,94911.0,94910.0,0.5927138]
[1746066706010,0.2107571,94911.0,94910.0,0.382]
[1746066706610,0.2107571,94911.0,94910.0,0.384]
[1746066706799,0.2107571,94911.0,94910.0,0.5986]
[1746066707702,4e-05,94911.0,94910.0,0.8093154]
[1746066709313,4e-05,94911.0,94910.0,0.8083154]
[1746066710509,4e-05,94911.0,94910.0,0.5976]
[1746066710708,0.5715531,94911.0,94910.0,0.5976]
[1746066710905,0.2107531,94911.0,94910.0,0.8083154]
[1746066711208,0.2107531,94911.0,94910.0,0.5976]
[1746066711902,0.2107531,94911.0,94910.0,0.8083154]
[1746066712512,0.2107531,94911.0,94910.0,0.8073154]
[1746066712712,4e-05,94911.0,94910.0,0.8083154]
[1746066713600,0.2107531,94911.0,94910.0,0.8083154]
[1746066713805,4e-05,94911.0,94910.0,0.8083154]
[1746066714014,4e-05,94911.0,94910.0,0.5976]
[1746066714208,0.2107531,94911.0,94910.0,0.5976]
[1746066714405,0.24490924,94911.0,94910.0,0.5976]
[1746066715213,0.03419614,94911.0,94910.0,0.8083154]
[1746066715617,0.24490924,94911.0,94910.0,0.383]
[1746066715912,0.46620924,94911.0,94910.0,0.383]
[1746066716708,0.24590924,94911.0,94910.0,0.382]
[1746066717109,0.24586924,94911.0,94910.0,0.382]
[1746066717405,0.24690924,94911.0,94910.0,0.382]
[1746066718605,0.24690924,94911.0,94910.0,0.5976]
[1746066720222,0.03619614,94911.0,94910.0,0.8083154]
[1746066720530,0.24690924,94911.0,94910.0,0.8083154]
[1746066721219,0.002,94911.0,94910.0,0.8083154]
[1746066721418,0.00204,94911.0,94910.0,0.8083154]
[1746066721807,0.001,94911.0,94910.0,0.8083154]
[1746066722008,0.00104,94911.0,94910.0,0.8083154]
[1746066722809,0.00104,94911.0,94910.0,0.8093154]
[1746066723516,4e-05,94911.0,94910.0,0.8103154]
[1746066723918,4e-05,94911.0,94910.0,0.5996]
[1746066724511,4e-05,94911.0,94910.0,0.5986]
[1746066724708,4e-05,94911.0,94910.0,0.5996]
[1746066725108,4e-05,94911.0,94910.0,0.5986]
[1746066725309,4e-05,94911.0,94910.0,0.5996]
[1746066725917,4e-05,94911.0,94910.0,0.8103154]
[1746066726110,4e-05,94911.0,94910.0,0.8093154]
[1746066726318,4e-05,94911.0,94910.0,0.8103154]
[1746066727222,4e-05,94911.0,94910.0,0.8093154]
[1746066727423,4e-05,94911.0,94910.0,0.8113154]
[1746066727822,4e-05,94911.0,94910.0,0.8103154]
[1746066728022,4e-05,94911.0,94910.0,0.8123154]
[1746066729133,4e-05,94911.0,94910.0,0.8103154]
[1746066729328,4e-05,94911.0,94910.0,0.8123154]
[1746066732240,4e-05,94911.0,94910.0,0.8103154]
[1746066732546,4e-05,94911.0,94910.0,0.8113154]
[1746066735939,4e-05,94911.0,94910.0,0.8103154]
[1746066737043,4e-05,94911.0,94910.0,0.8093154]
[1746066737231,4e-05,94911.0,94910.0,0.8103154]
[1746066737438,4e-05,94911.0,94910.0,0.8113154]
[1746066738242,4e-05,94911.0,94910.0,0.8103154]
[1746066741845,0.22704,94911.0,94910.0,0.8103154]
[1746066742046,0.22704,94911.0,94910.0,0.8093154]
[1746066742242,0.22704,94911.0,94910.0,0.8103154]
[1746066743251,0.22704,94911.0,94910.0,0.8093154]
[1746066743449,0.22704,94911.0,94910.0,0.8103154]
[1746066746045,4e-05,94911.0,94910.0,0.8103154]
[1746066753455,0.1197,94912.0,94911.0,0.2107131]
[1746066753656,0.1197,94912.0,94911.0,0.4507131]
[1746066753957,0.1197,94912.0,94911.0,0.6851131]
[1746066754154,0.1197,94912.0,94911.0,0.8071131]
[1746066754948,0.1197,94912.0,94911.0,0.8081131]
[1746066756758,0.1197,94912.0,94911.0,0.8091131]
[1746066757657,0.15385614,94912.0,94911.0,0.8091131]
[1746066758359,0.03415614,94912.0,94911.0,0.8091131]
[1746066764458,0.08044876,94925.0,94924.0,0.2106843]
[1746066764661,0.08044876,94925.0,94917.0,0.0526744]
[1746066764662,5.401e-05,94919.0,94917.0,0.0526744]
[1746066764860,5.401e-05,94919.0,94918.0,0.3203976]
[1746066765053,5.401e-05,94919.0,94918.0,0.6003976]
[1746066765758,5.401e-05,94919.0,94918.0,0.7192976]
[1746066765961,0.00105401,94919.0,94918.0,0.7192976]
[1746066766261,0.00105401,94919.0,94918.0,0.8412976]
[1746066768968,5.401e-05,94919.0,94918.0,0.8422976]
[1746066769151,5.401e-05,94919.0,94918.0,0.8432976]
[1746066770259,5.401e-05,94919.0,94918.0,0.8422976]
[1746066771670,5.401e-05,94919.0,94918.0,0.8432976]
[1746066772171,5.401e-05,94919.0,94918.0,0.8422976]
[1746066776669,0.03421015,94919.0,94918.0,0.8422976]
[1746066795867,0.03415614,94919.0,94918.0,0.8422976]
[1746066799668,0.2288,94924.0,94919.0,0.2106935]
[1746066799874,0.1194,94923.0,94919.0,0.4506935]
[1746066800078,0.1194,94923.0,94920.0,0.2463]
[1746066800281,0.1139,94922.0,94920.0,0.5063]
[1746066800481,0.03415614,94921.0,94920.0,0.5063]
[1746066801178,0.03415614,94921.0,94920.0,0.8389932]
[1746066802676,0.03415614,94921.0,94920.0,0.6283]
[1746066802886,0.15625614,94921.0,94920.0,0.6283]
[1746066804182,0.15625614,94921.0,94920.0,0.506]
[1746066804680,0.0526761,94915.0,94900.0,0.3608]
[1746066804880,0.60566704,94912.0,94911.0,0.3899376]
[1746066805285,0.60566704,94912.0,94911.0,0.5119376]
[1746066806387,0.60566704,94912.0,94911.0,0.5139376]
[1746066806979,0.60566704,94912.0,94911.0,0.5119376]
[1746066807185,0.60766704,94912.0,94911.0,0.5119376]
[1746066808294,0.60766704,94912.0,94911.0,0.352]
[1746066810584,0.39695614,94912.0,94911.0,0.352]
[1746066810794,0.60766704,94912.0,94911.0,0.352]
[1746066812993,0.2107442,94897.0,94890.0,8.953e-05]
[1746066813179,0.13429323,94906.0,94898.0,0.1143]
[1746066813488,0.3608,94899.0,94898.0,0.39503969]
[1746066813684,0.39495614,94899.0,94898.0,0.39503969]
[1746066814180,0.39495614,94899.0,94898.0,0.51703969]
[1746066814377,0.63345614,94899.0,94898.0,0.51703969]
[1746066814783,0.63345614,94899.0,94898.0,0.51803969]
[1746066814985,0.84419594,94899.0,94898.0,0.51803969]
[1746066815491,0.63345614,94899.0,94898.0,0.72878169]
[1746066815683,0.63349614,94899.0,94898.0,0.51803969]
[1746066815880,0.63349614,94899.0,94898.0,0.52003969]
[1746066816679,0.27269614,94899.0,94898.0,0.52003969]
[1746066816887,0.48343594,94899.0,94898.0,0.52003969]
[1746066820685,0.27269614,94899.0,94898.0,0.52003969]
[1746066821283,0.27269614,94899.0,94898.0,0.51903969]
[1746066821593,0.27269614,94899.0,94898.0,0.51703969]
[1746066821795,0.27269614,94899.0,94898.0,0.51803969]
[1746066822995,0.27269614,94899.0,94898.0,0.51703969]
[1746066823498,4e-05,94899.0,94898.0,0.72778169]
[1746066823793,0.3608,94902.0,94900.0,0.2107365]
[1746066823987,0.3608,94902.0,94901.0,0.3655]
[1746066824185,0.3608,94902.0,94901.0,0.6355]
[1746066824390,5.401e-05,94904.0,94901.0,0.9963]
[1746066824598,0.1134,94917.0,94911.0,0.2107121]
[1746066824796,0.03415614,94914.0,94912.0,0.3559]
[1746066824990,0.03415614,94914.0,94912.0,0.6459]
[1746066825186,0.03415614,94914.0,94912.0,0.7679]
[1746066825390,4e-05,94914.0,94913.0,0.2107087]
[1746066825700,0.49914876,94920.0,94913.0,0.4824]
[1746066825997,0.03415614,94915.0,94914.0,0.2107065]
[1746066826299,0.03415614,94915.0,94914.0,0.5895]
[1746066826490,5.401e-05,94919.0,94914.0,0.5895]
[1746066826692,0.03415614,94916.0,94915.0,0.2107043]
[1746066826887,0.03415614,94916.0,94915.0,0.4758]
[1746066827092,0.08044876,94920.0,94915.0,0.8085043]
[1746066827298,0.03415614,94916.0,94915.0,0.8085043]
[1746066827690,0.2106891,94922.0,94915.0,0.8085043]
[1746066827891,0.03419614,94916.0,94915.0,0.8085043]
[1746066828499,4e-05,94916.0,94915.0,0.8085043]
[1746066829298,5.401e-05,94921.0,94917.0,0.2106983]
[1746066829502,5.401e-05,94921.0,94918.0,0.2543]
[1746066829795,5.401e-05,94921.0,94918.0,0.4943]
[1746066830192,5.401e-05,94921.0,94918.0,0.6163]
[1746066830690,0.00105401,94921.0,94918.0,0.8269973]
[1746066831800,0.00105401,94921.0,94919.0,0.2106948]
[1746066831999,0.00105401,94921.0,94919.0,0.4906948]
[1746066832186,0.00105401,94921.0,94920.0,0.2543]
[1746066832395,0.00105401,94921.0,94920.0,0.5343]
[1746066832798,0.00105401,94921.0,94920.0,0.7449932]
[1746066833204,0.00105401,94921.0,94920.0,0.8669932]
[1746066833397,5.401e-05,94921.0,94920.0,0.8669932]
[1746066833696,0.00105401,94921.0,94920.0,0.8669932]
[1746066834401,0.00205401,94921.0,94920.0,0.8669932]
[1746066838609,0.00205401,94921.0,94920.0,0.6563]
[1746066840106,0.12555401,94921.0,94920.0,0.6563]
[1746066840607,0.33624491,94921.0,94920.0,0.6563]
[1746066849109,0.12555401,94921.0,94920.0,0.6563]
[1746066849605,0.33624491,94921.0,94920.0,0.6563]
[1746066849806,0.12555401,94921.0,94920.0,0.6563]
[1746066850303,0.33624491,94921.0,94920.0,0.6563]
[1746066851007,0.12555401,94921.0,94920.0,0.6563]
[1746066851602,0.33624491,94921.0,94920.0,0.6563]
[1746066852408,0.46414491,94921.0,94920.0,0.6563]
[1746066853508,0.46414491,94921.0,94920.0,0.5281]
[1746066857719,0.49830105,94921.0,94920.0,0.5281]
[1746066859911,0.85910105,94921.0,94920.0,0.5281]
[1746066860316,0.49830105,94921.0,94920.0,0.5281]
[1746066860503,0.85910105,94921.0,94920.0,0.5281]
[1746066860812,0.85904704,94921.0,94920.0,0.5281]
[1746066863513,0.49824704,94921.0,94920.0,0.5281]
[1746066863713,0.85904704,94921.0,94920.0,0.5281]
[1746066883032,0.60764704,94921.0,94920.0,0.5281]
[1746066891027,0.72834704,94921.0,94920.0,0.5281]
[1746066891232,0.85434704,94921.0,94920.0,0.5281]
[1746066901947,0.64365614,94921.0,94920.0,0.5281]
[1746066902650,0.85434704,94921.0,94920.0,0.5281]
[1746066903456,0.08044876,94926.0,94920.0,0.7387932]
[1746066903761,0.0751722,94926.0,94925.0,0.2106821]
[1746066903958,0.0751722,94926.0,94925.0,0.4806821]
[1746066904141,0.0751722,94926.0,94925.0,0.6026821]
[1746066904345,0.0752122,94926.0,94925.0,0.6026821]
[1746066904559,0.0762122,94926.0,94925.0,0.8611821]
[1746066905254,0.0752122,94926.0,94925.0,0.8611821]
[1746066905450,0.0782122,94926.0,94925.0,0.8611821]
[1746066905843,5.401e-05,94932.0,94931.0,0.2106688]
[1746066906049,0.10409964,94933.0,94932.0,0.2106665]
[1746066906253,0.13378449,94942.0,94941.0,0.2106466]
[1746066906456,0.13378449,94942.0,94941.0,0.4706466]
[1746066907057,0.3608,94950.0,94942.0,0.0526607]
[1746066907357,0.3608,94950.0,94949.0,0.2106288]
[1746066907358,0.36085401,94950.0,94949.0,0.2106288]
[1746066907548,0.3608,94950.0,94949.0,0.4406288]
[1746066907746,0.36084,94950.0,94949.0,0.4406288]
[1746066907952,4e-05,94950.0,94949.0,0.4406288]
[1746066908152,0.001,94956.0,94955.0,0.2106155]
[1746066908343,5.401e-05,94960.0,94955.0,0.2926534]
[1746066908549,5.401e-05,94960.0,94959.0,0.2106066]
[1746066908749,0.16089752,94966.0,94965.0,0.2105933]
[1746066908960,0.16089752,94966.0,94965.0,0.4705933]
[1746066909161,0.16089752,94966.0,94965.0,0.5925933]
[1746066909961,0.16089752,94966.0,94965.0,0.8522933]
[1746066910852,0.16489752,94966.0,94965.0,0.8522933]
[1746066911354,0.007,94966.0,94965.0,0.8522933]
[1746066912259,0.007,94966.0,94965.0,0.87152179]
[1746066918560,5.401e-05,94969.0,94968.0,0.2105867]
[1746066918761,5.401e-05,94969.0,94968.0,0.4805867]
[1746066919365,5.401e-05,94969.0,94968.0,0.6025867]
[1746066919563,0.00405401,94969.0,94968.0,0.6025867]
[1746066919754,0.004,94969.0,94968.0,0.6025867]
[1746066919957,0.00704,94969.0,94968.0,0.6025867]
[1746066920261,0.007,94969.0,94968.0,0.6025867]
[1746066920462,0.00704,94969.0,94968.0,0.6025867]
[1746066920649,0.007,94969.0,94968.0,0.6025867]
[1746066920853,0.00704,94969.0,94968.0,0.6025867]
[1746066933273,0.0015,94975.0,94974.0,0.2105734]
[1746066933473,0.0015,94975.0,94974.0,0.5354934]
[1746066933676,0.0015,94975.0,94974.0,0.26]
[1746066933677,0.29045614,94975.0,94974.0,0.26]
[1746066933877,0.85631935,94975.0,94974.0,0.26]
[1746066934183,0.29045614,94975.0,94974.0,0.382]
[1746066934564,0.29445614,94975.0,94974.0,0.382]
[1746066935073,0.29445614,94975.0,94974.0,0.44692]
[1746066935276,0.29449614,94975.0,94974.0,0.44692]
[1746066935475,0.29849614,94975.0,94974.0,0.44692]
[1746066936075,0.29849614,94975.0,94974.0,0.6574934]
[1746066942173,0.29849614,94975.0,94974.0,0.7783934]
[1746066944771,0.50906734,94975.0,94974.0,0.56782]
[1746066945275,0.29849614,94975.0,94974.0,0.56782]
[1746066945473,0.29849614,94975.0,94974.0,0.7783934]
[1746066945663,0.29849614,94975.0,94974.0,0.56782]
[1746066946264,0.29849614,94975.0,94974.0,0.7783934]
[1746066946865,0.50906734,94975.0,94974.0,0.7783934]
[1746066947266,0.29849614,94975.0,94974.0,0.7783934]
[1746066948277,0.29849614,94975.0,94974.0,0.56782]
[1746066948481,0.29849614,94975.0,94974.0,0.7783934]
[1746066949374,0.29849614,94975.0,94974.0,0.56782]
[1746066950574,0.29849614,94975.0,94974.0,0.7783934]
[1746066951879,0.29849614,94975.0,94974.0,0.56782]
[1746066958587,0.04365614,94975.0,94974.0,0.9049934]
[1746066958975,0.04369614,94975.0,94974.0,0.9049934]
[1746066959685,0.04369614,94975.0,94974.0,0.69442]
[1746066961179,0.25426734,94975.0,94974.0,0.69442]
[1746066961490,0.04369614,94975.0,94974.0,0.69442]
[1746066962479,0.43089614,94975.0,94974.0,0.69442]
[1746066965581,0.00954,94975.0,94974.0,0.9049934]
[1746066967390,0.00954,94975.0,94974.0,1.0316934]
[1746066972394,0.00954,94975.0,94974.0,0.9049934]
[1746066981986,0.00954,94975.0,94974.0,1.0285934]
[1746066982192,0.0095,94975.0,94974.0,1.0285934]
[1746066982495,0.00954,94975.0,94974.0,1.0285934]
[1746066986692,0.00954,94975.0,94974.0,0.9049934]
[1746066989697,0.0095,94975.0,94974.0,1.2657934]
[1746066990493,0.00954,94975.0,94974.0,1.2008734]
[1746066990695,0.00954,94975.0,94974.0,1.2656734]
[1746066991298,0.04369614,94975.0,94974.0,0.8400734]
[1746066991695,0.04369614,94975.0,94974.0,0.5677]
[1746066991904,0.04369614,94975.0,94974.0,0.7782734]
[1746066992501,0.04369614,94975.0,94974.0,0.9133734]
[1746066998114,0.30669614,94975.0,94974.0,0.9133734]
[1746066999211,0.30669614,94975.0,94974.0,0.7028]
[1746067000607,0.66749614,94975.0,94974.0,0.9133734]
[1746067002398,0.30669614,94975.0,94974.0,0.9133734]
[1746067002602,0.66749614,94975.0,94974.0,0.9133734]
[1746067004906,0.30669614,94975.0,94974.0,0.9133734]
[1746067005098,0.66749614,94975.0,94974.0,0.9133734]
[1746067008205,0.66749614,94975.0,94974.0,0.8485734]
[1746067008411,0.61506734,94975.0,94974.0,0.5677]
[1746067008612,0.86416734,94975.0,94974.0,0.5677]
[1746067009207,0.86416734,94975.0,94974.0,0.5029]
[1746067009410,0.86416734,94975.0,94974.0,0.56762]
[1746067011411,0.86416734,94975.0,94974.0,0.58314659]
[1746067011810,0.86416734,94975.0,94974.0,0.79371999]
[1746067014517,0.86416734,94975.0,94974.0,0.72899999]
[1746067014813,0.86416734,94975.0,94974.0,0.79375999]
[1746067015231,0.86416734,94975.0,94974.0,0.7937123]
[1746067016320,0.50336734,94975.0,94974.0,0.7937123]
[1746067016624,0.86416734,94975.0,94974.0,0.7937123]
[1746067018520,0.86416734,94975.0,94974.0,0.5831389]
[1746067018822,0.86416734,94975.0,94974.0,0.58313968]
[1746067020427,0.86416734,94975.0,94974.0,0.70793968]
[1746067020626,0.86416734,94975.0,94974.0,0.91851308]
[1746067020822,0.86412734,94975.0,94974.0,0.91851308]
[1746067022222,0.86412734,94975.0,94974.0,0.91858242]
[1746067022923,0.86412734,94975.0,94974.0,0.70800902]
[1746067025423,0.86412734,94975.0,94974.0,0.70801929]
[1746067025623,0.50332734,94975.0,94974.0,0.70801929]
[1746067025821,0.86412734,94975.0,94974.0,0.70801929]
[1746067027626,0.86412734,94975.0,94974.0,0.70803869]
[1746067029731,0.86412734,94975.0,94974.0,0.70805599]
[1746067030639,0.61502734,94975.0,94974.0,0.91862939]
[1746067031334,0.61502734,94975.0,94974.0,0.91868454]
[1746067033035,0.61502734,94975.0,94974.0,0.91886858]
[1746067034930,0.61502734,94975.0,94974.0,0.91886733]
[1746067038526,0.61502734,94975.0,94974.0,0.70828711]
[1746067039238,0.87312734,94975.0,94974.0,0.70828711]
[1746067042035,0.87312734,94975.0,94974.0,0.70827854]
[1746067042236,0.40445614,94975.0,94974.0,0.91885194]
[1746067042431,0.40445614,94975.0,94974.0,0.91885147]
[1746067042750,0.61502734,94975.0,94974.0,0.91885147]
[1746067043833,0.61502734,94975.0,94974.0,0.85409147]
[1746067044028,0.61502734,94975.0,94974.0,0.91877147]
[1746067044234,0.61502734,94975.0,94974.0,0.91880506]
[1746067045636,0.40445614,94975.0,94974.0,0.91880506]
[1746067045934,0.0095,94975.0,94974.0,0.91880506]
[1746067046137,0.00954,94975.0,94974.0,0.91880506]
[1746067047335,0.00954,94975.0,94974.0,0.91932714]
[1746067047537,0.00954,94975.0,94974.0,0.91932716]
[1746067049929,0.00954,94975.0,94974.0,0.91940719]
[1746067050631,0.00954,94975.0,94974.0,0.93106748]
[1746067052338,0.00954,94975.0,94974.0,0.91461309]
[1746067052526,0.00954,94975.0,94974.0,0.93106688]
[1746067053538,0.00954,94975.0,94974.0,0.91940719]
[1746067054938,0.00954,94975.0,94974.0,0.85472719]
[1746067055142,0.00954,94975.0,94974.0,0.91940719]
[1746067061346,0.00954,94975.0,94974.0,0.91940713]
[1746067061532,0.00954,94975.0,94974.0,0.9029534]
[1746067061844,0.00954,94975.0,94974.0,0.91740713]
[1746067065738,0.00954,94975.0,94974.0,0.91740589]
[1746067067744,0.0095,94975.0,94974.0,0.91740589]
[1746067067953,0.00954,94975.0,94974.0,0.91740589]
[1746067068851,0.00954,94975.0,94974.0,0.91520589]
[1746067069341,0.00554,94975.0,94974.0,0.91520589]
[1746067069541,0.00754,94975.0,94974.0,0.91520589]
[1746067070050,0.00354,94975.0,94974.0,0.91520589]
[1746067070250,0.00454,94975.0,94974.0,0.91520589]
[1746067070435,0.00454,94975.0,94974.0,1.27600589]
[1746067070842,0.00454,94975.0,94974.0,1.2595534]
[1746067071045,0.00454,94975.0,94974.0,1.27600648]
[1746067075946,0.00454,94975.0,94974.0,1.27583076]
[1746067077445,0.00454,94975.0,94974.0,1.27583058]
[1746067078145,0.00454,94975.0,94974.0,1.27583057]
[1746067078744,0.00454,94975.0,94974.0,1.27582957]
[1746067079151,0.00454,94975.0,94974.0,1.27536941]
[1746067082774,0.00454,94975.0,94974.0,1.27582749]
[1746067084157,0.00454,94975.0,94974.0,1.27593175]
[1746067084361,0.00454,94975.0,94974.0,1.27593209]
[1746067085060,0.00454,94975.0,94974.0,1.27600514]
[1746067092056,0.00454,94975.0,94974.0,1.21132514]
[1746067092258,0.00454,94975.0,94974.0,1.27716514]
[1746067092663,0.00454,94975.0,94974.0,1.69296514]
[1746067093768,0.00454,94975.0,94974.0,1.90621528]
[1746067095066,0.00454,94975.0,94974.0,1.90563143]
[1746067096161,0.00454,94975.0,94974.0,1.54253143]
[1746067096361,0.00454,94975.0,94974.0,1.90333143]
[1746067096967,0.00454,94975.0,94974.0,1.90328489]
[1746067097569,0.00454,94975.0,94974.0,1.69003475]
[1746067098370,0.0045,94975.0,94974.0,1.69003475]
[1746067101368,0.0045,94975.0,94974.0,1.90328489]
[1746067101763,0.0045,94975.0,94974.0,2.00857689]
[1746067102160,0.00454,94975.0,94974.0,2.00857689]
[1746067102362,0.00454,94975.0,94974.0,1.99275554]
[1746067102964,0.00454,94975.0,94974.0,2.00891433]
[1746067103466,0.00454,94975.0,94974.0,1.99275554]
[1746067104171,0.00454,94975.0,94974.0,2.0083943]
[1746067104370,0.00454,94975.0,94974.0,2.33352188]
[1746067104675,0.0045,94975.0,94974.0,2.33352188]
[1746067105263,0.0045,94975.0,94974.0,2.08352188]
[1746067105467,0.00254,94975.0,94974.0,2.08352188]
[1746067105770,0.00254,94975.0,94974.0,2.08452188]
[1746067106364,0.00154,94975.0,94974.0,2.08452188]
[1746067106569,0.00154,94975.0,94974.0,2.08552188]
[1746067108476,0.00154,94975.0,94974.0,1.7815054]
[1746067110477,0.00154,94975.0,94974.0,1.79697792]
[1746067111367,0.00154,94975.0,94974.0,1.7815054]
[1746067111968,0.00154,94975.0,94974.0,1.7792054]
[1746067114379,0.00154,94975.0,94974.0,1.4832734]
[1746067114674,0.03569614,94975.0,94974.0,1.4832734]
[1746067114867,0.03569614,94975.0,94974.0,1.5499534]
[1746067116871,0.17059614,94975.0,94974.0,1.5499534]
[1746067119676,0.17059614,94975.0,94974.0,1.4832734]
[1746067119875,0.17059614,94975.0,94974.0,1.5499534]
[1746067120880,0.17059614,94975.0,94974.0,1.89669767]
[1746067125384,0.17059614,94975.0,94974.0,1.6839534]
[1746067128186,0.17059614,94975.0,94974.0,1.6816534]
[1746067132890,0.17059614,94975.0,94974.0,1.6818934]
[1746067133587,0.17059614,94975.0,94974.0,1.5478934]
[1746067134180,0.17059614,94975.0,94974.0,1.4269934]
[1746067134893,0.17059614,94975.0,94974.0,1.1408934]
[1746067135392,0.17059614,94975.0,94974.0,1.0111934]
[1746067135896,0.17055614,94975.0,94974.0,1.0111934]
[1746067140592,0.17055614,94975.0,94974.0,1.1367934]
[1746067143208,0.17055614,94975.0,94974.0,1.2605934]
[1746067143700,0.17059614,94975.0,94974.0,1.2605934]
[1746067151904,0.17059614,94975.0,94974.0,1.1367934]
[1746067153301,0.17059614,94975.0,94974.0,1.0111934]
[1746067153498,0.17059614,94975.0,94974.0,1.1443934]
[1746067159403,0.17059614,94975.0,94974.0,1.2706934]
[1746067167206,0.17059614,94975.0,94974.0,0.9098934]
[1746067167600,0.17059614,94975.0,94974.0,1.12293157]
[1746067171705,0.17059614,94975.0,94974.0,0.9098934]
[1746067172412,0.17059614,94975.0,94974.0,0.9095334]
[1746067173011,0.03569614,94975.0,94974.0,0.9095334]
[1746067173203,0.03565614,94975.0,94974.0,0.9095334]
[1746067174111,0.03569614,94975.0,94974.0,0.9095334]
[1746067175808,0.16239614,94975.0,94974.0,0.9095334]
[1746067179015,0.16239614,94975.0,94974.0,0.7832334]
[1746067179715,0.47825935,94975.0,94974.0,0.3729]
[1746067179913,0.21058,94971.0,94970.0,0.02042]
[1746067180111,0.2105911,94966.0,94965.0,0.01922849]
[1746067180329,0.65819494,94966.0,94965.0,0.29]
[1746067180509,0.65819494,94966.0,94956.0,0.32004223]
[1746067180510,0.2106111,94957.0,94956.0,0.32004223]
[1746067180706,0.60556724,94957.0,94956.0,0.56004223]
[1746067181006,0.96087924,94957.0,94956.0,0.5739599]
[1746067181509,1.21547924,94957.0,94956.0,0.5739599]
[1746067181707,0.96547924,94957.0,94956.0,0.5739599]
[1746067182509,0.96547924,94957.0,94956.0,0.56004223]
[1746067182709,0.96547924,94957.0,94956.0,0.56504223]
[1746067183020,0.96547924,94957.0,94956.0,0.57891875]
[1746067183312,0.96547924,94957.0,94956.0,0.58291875]
[1746067183716,0.96547924,94957.0,94956.0,0.79353205]
[1746067184217,0.96547924,94957.0,94956.0,0.91553205]
[1746067184707,0.9313231,94957.0,94956.0,0.91553205]
[1746067184908,0.96547924,94957.0,94956.0,0.91553205]
[1746067185609,0.96547924,94957.0,94956.0,0.70491875]
[1746067185808,0.96547924,94957.0,94956.0,0.38487652]
[1746067194508,0.96547924,94957.0,94956.0,0.51127652]
[1746067202127,0.96547924,94957.0,94956.0,0.64017652]
[1746067203017,0.5714111,94957.0,94956.0,0.85078982]
[1746067203221,0.5714511,94957.0,94956.0,0.85078982]
[1746067203428,0.36084,94957.0,94956.0,0.85078982]
[1746067203624,0.5714511,94957.0,94956.0,0.64017652]
[1746067205121,0.5714511,94957.0,94956.0,0.85078982]
[1746067206230,0.36084,94957.0,94956.0,0.85078982]
[1746067206433,0.5714511,94957.0,94956.0,0.85078982]
[1746067206618,0.5714111,94957.0,94956.0,0.85078982]
[1746067207524,0.5714511,94957.0,94956.0,0.85078982]
[1746067211029,0.36084,94957.0,94956.0,0.85078982]
[1746067211224,0.3608,94957.0,94956.0,0.85078982]
[1746067211425,0.36084,94957.0,94956.0,0.85078982]
[1746067215725,0.36084,94957.0,94956.0,0.64017652]
[1746067216725,0.5714511,94957.0,94956.0,0.64017652]
[1746067218328,0.60560724,94957.0,94956.0,0.64017652]
[1746067219736,0.03419614,94957.0,94956.0,0.85078982]
[1746067219938,0.08062776,94979.0,94970.0,0.2105814]
[1746067220234,0.5713769,94973.0,94971.0,0.3096]
[1746067220537,0.3608,94973.0,94972.0,0.2105778]
[1746067220737,0.3608,94973.0,94972.0,0.4705778]
[1746067220929,0.60553174,94973.0,94972.0,0.6750778]
[1746067221235,0.39495614,94973.0,94972.0,0.7970778]
[1746067221433,0.39499614,94973.0,94972.0,0.7970778]
[1746067221635,0.3608,94973.0,94972.0,0.7970778]
[1746067222136,0.36084,94973.0,94972.0,0.7970778]
[1746067222436,0.36084,94973.0,94972.0,0.7980778]
[1746067222738,0.36084,94973.0,94972.0,0.7990778]
[1746067223732,0.3608,94973.0,94972.0,0.7990778]
[1746067224036,0.36084,94973.0,94972.0,0.7990778]
[1746067226048,4e-05,94973.0,94972.0,0.7990778]
[1746067226240,4e-05,94973.0,94972.0,0.5885]
[1746067226650,4e-05,94973.0,94972.0,0.65466]
[1746067227449,4e-05,94973.0,94972.0,0.8652378]
[1746067229854,4e-05,94973.0,94972.0,0.5885]
[1746067229855,0.03419614,94973.0,94972.0,0.5885]
[1746067230557,0.25079614,94973.0,94972.0,0.7990778]
[1746067232867,4e-05,94973.0,94972.0,0.7990778]
[1746067233355,0.3608,94974.0,94972.0,0.7990778]
[1746067233356,0.3608,94974.0,94973.0,0.2105756]
[1746067233657,0.4672,94974.0,94973.0,0.4705756]
[1746067233856,0.4672,94974.0,94973.0,0.6964756]
[1746067234656,0.4672,94974.0,94973.0,0.6974756]
[1746067234955,0.576,94974.0,94973.0,0.4869]
[1746067235356,0.82072954,94974.0,94973.0,0.4879]
[1746067235557,0.92642954,94974.0,94973.0,0.4879]
[1746067239360,0.92642954,94974.0,94973.0,0.384]
[1746067239862,1.03172155,94974.0,94973.0,0.384]
[1746067241257,1.03172155,94974.0,94973.0,0.262]
[1746067241849,1.28172155,94974.0,94973.0,0.262]
[1746067242055,1.28172155,94974.0,94968.0,0.02853]
[1746067242056,0.2105845,94969.0,94968.0,0.02853]